fUST/lending_fUST_20250828
["ID","MTS","AMOUNT","RATE_DAILY","PERIOD"]
[381736825,1756325459849,-747.73,0.00022465,2]
[381736826,1756325459859,-480.0,0.00022465,2]
[381736828,1756325459869,-480.0,0.00022465,2]
[381736830,1756325459878,-480.0,0.00022465,2]
[381736832,1756325459888,-480.0,0.00022465,2]
[381736834,1756325459897,-480.0,0.00022465,2]
[381736836,1756325459907,-480.0,0.00022465,2]
[381736838,1756325459917,-649.83,0.00022465,2]
[381736840,1756325459927,-480.0,0.00022465,2]
[381736841,1756325459936,-499.29,0.00022465,2]
[381736843,1756325459945,-480.0,0.00022465,2]
[381736845,1756325459955,-622.75,0.00022465,2]
[381736847,1756325459964,-480.0,0.00022465,2]
[381736849,1756325459974,-649.25,0.00022465,2]
[381736851,1756325459984,-151.0,0.00022465,7]
[381736853,1756325459993,-151.0,0.00022465,7]
[381736855,1756325460003,-480.0,0.00022465,2]
[381736857,1756325460013,-151.0,0.00022465,7]
[381736859,1756325460022,-275.035938,0.00022465,7]
[381736860,1756325460032,-480.0,0.00022465,2]
[381736862,1756325460042,-480.0,0.00022465,2]
[381736864,1756325460053,-559.41616791,0.00022465,2]
[381736866,1756325460064,-825.94,0.00022465,2]
[381736868,1756325460074,-480.0,0.00022465,2]
[381736870,1756325460084,-480.0,0.00022465,2]
[381736872,1756325460094,-480.0,0.00022465,2]
[381736874,1756325460104,-480.0,0.00022465,2]
[381736876,1756325460115,-480.0,0.00022465,2]
[381736878,1756325460124,-645.83,0.00022465,2]
[381736880,1756325460134,-480.0,0.00022465,2]
[381736882,1756325460144,-480.0,0.00022465,2]
[381736883,1756325460155,-480.0,0.00022465,2]
[381736885,1756325460164,-480.0,0.00022465,2]
[381736887,1756325460174,-480.0,0.00022465,2]
[381736889,1756325460183,-480.0,0.00022465,2]
[381736891,1756325460192,-1166.91,0.00022465,2]
[381736893,1756325460202,-1166.91,0.00022465,2]
[381736895,1756325460211,-480.0,0.00022465,2]
[381736897,1756325460221,-480.0,0.00022465,2]
[381736899,1756325460230,-480.0,0.00022465,2]
[381736900,1756325460240,-500.0,0.00022465,2]
[381736902,1756325460249,-480.0,0.00022465,2]
[381736904,1756325460259,-527.27,0.00022465,2]
[381736906,1756325460269,-620.92,0.00022465,2]
[381736908,1756325460279,-637.48,0.00022465,2]
[381736910,1756325460288,-480.0,0.00022465,2]
[381736912,1756325460297,-480.0,0.00022465,2]
[381736914,1756325460307,-6920.83,0.00022465,2]
[381736916,1756325460317,-480.0,0.00022465,2]
[381736917,1756325460326,-480.0,0.00022465,2]
[381736919,1756325460336,-632.17,0.00022465,2]
[381736921,1756325460346,-347.92218404,0.00022465,2]
[381736923,1756325460355,-480.0,0.00022465,2]
[381736924,1756325460365,-480.0,0.00022465,2]
[381736926,1756325460374,-480.0,0.00022465,2]
[381736928,1756325460384,-500.0,0.00022465,2]
[381736930,1756325460393,-480.0,0.00022465,2]
[381736932,1756325460403,-480.0,0.00022465,2]
[381736933,1756325460412,-480.0,0.00022465,2]
[381736935,1756325460423,-480.0,0.00022465,2]
[381736937,1756325460432,-480.0,0.00022465,2]
[381736939,1756325460441,-528.85,0.00022465,2]
[381736941,1756325460451,-480.0,0.00022465,2]
[381736943,1756325460460,-480.0,0.00022465,2]
[381736944,1756325460469,-480.0,0.00022465,2]
[381736946,1756325460479,-480.0,0.00022465,2]
[381736948,1756325460489,-3489.71,0.00022465,2]
[381736950,1756325460498,-480.0,0.00022465,2]
[381736952,1756325460508,-480.0,0.00022465,2]
[381736953,1756325460517,-480.0,0.00022465,2]
[381736955,1756325460527,-480.0,0.00022465,2]
[381736957,1756325460539,-892.71,0.00022465,2]
[381736959,1756325460549,-480.0,0.00022465,2]
[381736961,1756325460560,-480.0,0.00022465,2]
[381736963,1756325460570,-480.0,0.00022465,2]
[381736964,1756325460580,-480.0,0.00022465,2]
[381736966,1756325460590,-533.61,0.00022465,2]
[381736968,1756325460599,-480.0,0.00022465,2]
[381736970,1756325460609,-480.0,0.00022465,2]
[381736972,1756325460620,-480.0,0.00022465,2]
[381736974,1756325460630,-480.0,0.00022465,2]
[381736976,1756325460640,-480.0,0.00022465,2]
[381736977,1756325460649,-480.0,0.00022465,2]
[381736979,1756325460658,-480.0,0.00022465,2]
[381736981,1756325460668,-480.0,0.00022465,2]
[381736982,1756325460677,-480.0,0.00022465,2]
[381736983,1756325460686,-1065.32,0.00022465,2]
[381736984,1756325460695,-480.0,0.00022465,2]
[381736985,1756325460704,-480.0,0.00022465,2]
[381736986,1756325460714,-480.0,0.00022465,2]
[381736987,1756325460724,-1339.14,0.00022465,2]
[381736988,1756325460734,-480.0,0.00022465,2]
[381736989,1756325460744,-480.0,0.00022465,2]
[381736990,1756325460753,-480.0,0.00022465,2]
[381736991,1756325460762,-480.0,0.00022465,2]
[381736992,1756325460772,-480.0,0.00022465,2]
[381736993,1756325460781,-186.309488,0.00022465,7]
[381736994,1756325460791,-480.0,0.00022465,2]
[381736995,1756325460801,-489.77,0.00022465,2]
[381736996,1756325460810,-480.0,0.00022465,2]
[381736997,1756325460819,-503.7,0.00022465,2]
[381736998,1756325460829,-480.0,0.00022465,2]
[381736999,1756325460838,-480.0,0.00022465,2]
[381737000,1756325460847,-629.4,0.00022465,2]
[381737001,1756325460856,-546.16,0.00022465,2]
[381737002,1756325460866,-480.0,0.00022465,2]
[381737003,1756325460875,-480.0,0.00022465,2]
[381737004,1756325460884,-651.29,0.00022465,2]
[381737005,1756325460894,-597.88,0.00022465,2]
[381737006,1756325460903,-480.0,0.00022465,2]
[381737007,1756325460913,-1260.34,0.00022465,2]
[381737008,1756325460923,-725.22,0.00022465,2]
[381737009,1756325460932,-509.75,0.00022465,2]
[381737010,1756325460942,-480.0,0.00022465,2]
[381737011,1756325460951,-480.0,0.00022465,2]
[381737012,1756325460961,-480.0,0.00022465,2]
[381737013,1756325460970,-1262.56,0.00022465,2]
[381737014,1756325460979,-480.0,0.00022465,2]
[381737015,1756325460989,-657.32,0.00022465,2]
[381737016,1756325460999,-714.69,0.00022465,2]
[381737017,1756325461008,-480.0,0.00022465,2]
[381737018,1756325461017,-480.0,0.00022465,2]
[381737019,1756325461027,-480.0,0.00022465,2]
[381737020,1756325461036,-720.75,0.00022465,2]
[381737021,1756325461046,-860.32,0.00022465,2]
[381737022,1756325461055,-771.83,0.00022465,2]
[381737023,1756325461067,-492.22,0.00022465,2]
[381737024,1756325461076,-480.0,0.00022465,2]
[381737025,1756325461085,-482.24467229,0.00022465,2]
[381737026,1756325461094,-151.0,0.00022465,7]
[381737028,1756325461103,-480.0,0.00022465,2]
[381737029,1756325461113,-480.0,0.00022465,2]
[381737030,1756325461123,-480.0,0.00022465,2]
[381737031,1756325461132,-480.0,0.00022465,2]
[381737033,1756325461142,-480.0,0.00022465,2]
[381737035,1756325461151,-480.0,0.00022465,2]
[381737037,1756325461161,-480.0,0.00022465,2]
[381737039,1756325461170,-480.0,0.00022465,2]
[381737041,1756325461179,-480.0,0.00022465,2]
[381737043,1756325461189,-530.37,0.00022465,2]
[381737045,1756325461198,-480.0,0.00022465,2]
[381737047,1756325461208,-480.0,0.00022465,2]
[381737049,1756325461217,-480.0,0.00022465,2]
[381737051,1756325461226,-1292.57,0.00022465,2]
[381737053,1756325461235,-480.0,0.00022465,2]
[381737055,1756325461244,-3472.6,0.00022465,2]
[381737057,1756325461254,-480.0,0.00022465,2]
[381737059,1756325461263,-480.0,0.00022465,2]
[381737061,1756325461272,-480.0,0.00022465,2]
[381737063,1756325461281,-569.43,0.00022465,2]
[381737065,1756325461290,-480.0,0.00022465,2]
[381737067,1756325461300,-480.0,0.00022465,2]
[381737069,1756325461311,-480.0,0.00022465,2]
[381737071,1756325461320,-480.0,0.00022465,2]
[381737073,1756325461329,-480.0,0.00022465,2]
[381737075,1756325461339,-532.51,0.00022465,2]
[381737077,1756325461348,-480.0,0.00022465,2]
[381737079,1756325461357,-480.0,0.00022465,2]
[381737081,1756325461367,-480.0,0.00022465,2]
[381737083,1756325461376,-1689.85,0.00022465,2]
[381737085,1756325461385,-1802.1,0.00022465,2]
[381737087,1756325461394,-480.0,0.00022465,2]
[381737089,1756325461403,-1223.96,0.00022465,2]
[381737091,1756325461412,-1661.78,0.00022465,2]
[381737093,1756325461422,-558.89,0.00022465,2]
[381737095,1756325461431,-1515.23,0.00022465,2]
[381737097,1756325461440,-977.02,0.00022465,2]
[381737099,1756325461449,-261.04964131,0.00022465,2]
[381737101,1756325461458,-480.0,0.00022465,2]
[381737103,1756325461467,-480.0,0.00022465,2]
[381737105,1756325461476,-482.27953886,0.00022465,2]
[381737107,1756325461486,-1955.9,0.00022465,2]
[381737109,1756325461495,-537.61,0.00022465,2]
[381737111,1756325461505,-480.0,0.00022465,2]
[381737113,1756325461515,-480.0,0.00022465,2]
[381737114,1756325461524,-480.0,0.00022465,2]
[381737116,1756325461534,-526.36,0.00022465,2]
[381737118,1756325461548,-998.99,0.00022465,2]
[381737121,1756325461557,-480.0,0.00022465,2]
[381737122,1756325461568,-480.0,0.00022465,2]
[381737124,1756325461578,-5413.4,0.00022465,2]
[381737126,1756325461587,-504.58,0.00022465,2]
[381737128,1756325461597,-482.35,0.00022465,2]
[381737130,1756325461606,-505.22,0.00022465,2]
[381737133,1756325461619,-569.53,0.00022465,2]
[381737135,1756325461629,-480.0,0.00022465,2]
[381737136,1756325461639,-1073.56,0.00022465,2]
[381737144,1756325461703,-480.0,0.00022465,2]
[381737146,1756325461712,-829.08,0.00022465,2]
[381737148,1756325461722,-1411.42,0.00022465,2]
[381737150,1756325461731,-480.0,0.00022465,2]
[381737152,1756325461740,-480.0,0.00022465,2]
[381737154,1756325461749,-480.0,0.00022465,2]
[381737156,1756325461758,-480.0,0.00022465,2]
[381737158,1756325461768,-480.0,0.00022465,2]
[381737160,1756325461777,-3189.84,0.00022465,2]
[381737162,1756325461786,-480.0,0.00022465,2]
[381737164,1756325461795,-480.0,0.00022465,2]
[381737166,1756325461804,-480.0,0.00022465,2]
[381737168,1756325461815,-480.0,0.00022465,2]
[381737170,1756325461824,-480.0,0.00022465,2]
[381737172,1756325461833,-480.0,0.00022465,2]
[381737174,1756325461842,-1047.41,0.00022465,2]
[381737176,1756325461851,-480.0,0.00022465,2]
[381737178,1756325461860,-480.0,0.00022465,2]
[381737180,1756325461869,-1224.4,0.00022465,2]
[381737182,1756325461878,-480.0,0.00022465,2]
[381737184,1756325461887,-480.0,0.00022465,2]
[381737186,1756325461896,-1894.57,0.00022465,2]
[381737188,1756325461905,-480.0,0.00022465,2]
[381737190,1756325461915,-480.0,0.00022465,2]
[381737192,1756325461925,-3836.23,0.00022465,2]
[381737194,1756325461934,-480.0,0.00022465,2]
[381737196,1756325461943,-480.0,0.00022465,2]
[381737198,1756325461953,-507.95,0.00022465,2]
[381737200,1756325461962,-677.08,0.00022465,2]
[381737202,1756325461971,-850.3,0.00022465,2]
[381737204,1756325461981,-480.0,0.00022465,2]
[381737206,1756325461989,-480.0,0.00022465,2]
[381737207,1756325461999,-1186.99,0.00022465,2]
[381737209,1756325462008,-480.0,0.00022465,2]
[381737211,1756325462018,-480.0,0.00022465,2]
[381737213,1756325462027,-480.0,0.00022465,2]
[381737215,1756325462036,-480.0,0.00022465,2]
[381737217,1756325462045,-480.0,0.00022465,2]
[381737219,1756325462054,-480.0,0.00022465,2]
[381737221,1756325462063,-480.0,0.00022465,2]
[381737223,1756325462072,-1127.27,0.00022465,2]
[381737225,1756325462081,-480.0,0.00022465,2]
[381737227,1756325462090,-480.0,0.00022465,2]
[381737229,1756325462099,-1361.02,0.00022465,2]
[381737231,1756325462108,-480.0,0.00022465,2]
[381737233,1756325462117,-480.0,0.00022465,2]
[381737235,1756325462126,-480.0,0.00022465,2]
[381737237,1756325462136,-480.0,0.00022465,2]
[381737238,1756325462145,-480.0,0.00022465,2]
[381737240,1756325462154,-4409.43,0.00022465,2]
[381737242,1756325462164,-480.0,0.00022465,2]
[381737244,1756325462174,-480.0,0.00022465,2]
[381737246,1756325462183,-1201.19,0.00022465,2]
[381737248,1756325462192,-825.527002,0.00022465,7]
[381737250,1756325462201,-151.0,0.00022465,7]
[381737252,1756325462211,-480.0,0.00022465,2]
[381737254,1756325462220,-825.527002,0.00022465,7]
[381737256,1756325462229,-480.0,0.00022465,2]
[381737258,1756325462238,-151.0,0.00022465,7]
[381737260,1756325462248,-561.11378429,0.00022465,2]
[381737262,1756325462257,-855.13,0.00022465,2]
[381737264,1756325462266,-480.0,0.00022465,2]
[381737266,1756325462275,-825.527002,0.00022465,7]
[381737268,1756325462284,-480.0,0.00022465,2]
[381737270,1756325462293,-151.0,0.00022465,7]
[381737272,1756325462303,-2607.41,0.00022465,2]
[381737274,1756325462313,-825.52700972,0.00022465,7]
[381737276,1756325462322,-1094.9,0.00022465,2]
[381737278,1756325462331,-480.0,0.00022465,2]
[381737280,1756325462340,-480.0,0.00022465,2]
[381737282,1756325462349,-188.669927,0.00022465,7]
[381737284,1756325462359,-923.98,0.00022465,2]
[381737286,1756325462368,-2174.03,0.00022465,2]
[381737288,1756325462377,-570.05,0.00022465,2]
[381737290,1756325462386,-728.09,0.00022465,2]
[381737292,1756325462395,-1310.36,0.00022465,2]
[381737294,1756325462404,-276.95067003,0.00022465,2]
[381737296,1756325462414,-2486.66,0.00022465,2]
[381737298,1756325462423,-480.0,0.00022465,2]
[381737300,1756325462432,-1371.75,0.00022465,2]
[381737302,1756325462441,-614.31,0.00022465,2]
[381737304,1756325462451,-480.0,0.00022465,2]
[381737306,1756325462459,-480.0,0.00022465,2]
[381737308,1756325462469,-480.0,0.00022465,2]
[381737310,1756325462478,-480.0,0.00022465,2]
[381737312,1756325462487,-480.0,0.00022465,2]
[381737314,1756325462496,-481.5433723,0.00022465,2]
[381737316,1756325462505,-480.0,0.00022465,2]
[381737318,1756325462514,-480.0,0.00022465,2]
[381737320,1756325462524,-480.0,0.00022465,2]
[381737322,1756325462533,-151.0,0.00022465,7]
[381737324,1756325462548,-597.9,0.00022465,2]
[381737326,1756325462557,-151.0,0.00022465,7]
[381737328,1756325462570,-480.0,0.00022465,2]
[381737329,1756325462579,-1392.96,0.00022465,2]
[381737331,1756325462588,-480.0,0.00022465,2]
[381737333,1756325462599,-480.0,0.00022465,2]
[381737335,1756325462609,-635.0,0.00022465,2]
[381737337,1756325462619,-480.0,0.00022465,2]
[381737339,1756325462628,-618.88,0.00022465,2]
[381737341,1756325462639,-747.0,0.00022465,2]
[381737343,1756325462649,-715.84,0.00022465,2]
[381737345,1756325462658,-480.0,0.00022465,2]
[381737347,1756325462668,-564.63,0.00022465,2]
[381737349,1756325462677,-480.0,0.00022465,2]
[381737351,1756325462686,-480.0,0.00022465,2]
[381737353,1756325462695,-675.64,0.00022465,2]
[381737355,1756325462704,-1259.37,0.00022465,2]
[381737357,1756325462714,-480.0,0.00022465,2]
[381737359,1756325462723,-480.0,0.00022465,2]
[381737361,1756325462732,-480.0,0.00022465,2]
[381737363,1756325462742,-4274.17,0.00022465,2]
[381737365,1756325462751,-739.44,0.00022465,2]
[381737367,1756325462760,-4096.08,0.00022465,2]
[381737369,1756325462769,-480.0,0.00022465,2]
[381737371,1756325462778,-480.0,0.00022465,2]
[381737373,1756325462787,-480.0,0.00022465,2]
[381737375,1756325462796,-480.0,0.00022465,2]
[381737377,1756325462806,-480.0,0.00022465,2]
[381737379,1756325462817,-480.0,0.00022465,2]
[381737381,1756325462825,-688.57,0.00022465,2]
[381737382,1756325462834,-480.0,0.00022465,2]
[381737385,1756325462844,-480.0,0.00022465,2]
[381737386,1756325462853,-480.0,0.00022465,2]
[381737388,1756325462862,-1178.9,0.00022465,2]
[381737390,1756325462871,-480.0,0.00022465,2]
[381737392,1756325462881,-510.85,0.00022465,2]
[381737394,1756325462890,-671.88,0.00022465,2]
[381737396,1756325462900,-1088.7,0.00022465,2]
[381737398,1756325462909,-210.76229774,0.00022473,2]
[381737400,1756325462918,-500.0,0.00022473,2]
[381737402,1756325462928,-500.0,0.00022473,2]
[381737404,1756325462937,-502.05494152,0.00022473,2]
[381737406,1756325462948,-500.0,0.00022473,2]
[381737408,1756325462957,-150.92245155,0.00022473,2]
[381737410,1756325462966,-500.0,0.00022473,2]
[381737412,1756325462976,-500.0,0.00022473,2]
[381737414,1756325462985,-500.0,0.00022473,2]
[381737416,1756325462994,-500.0,0.00022473,2]
[381737418,1756325463004,-500.0,0.00022473,2]
[381737420,1756325463014,-500.0,0.00022473,2]
[381737422,1756325463023,-500.0,0.00022473,2]
[381737424,1756325463033,-500.0,0.00022473,2]
[381737426,1756325463044,-500.0,0.00022473,2]
[381737428,1756325463054,-500.0,0.00022473,2]
[381737430,1756325463067,-500.0,0.00022473,2]
[381737432,1756325463076,-500.0,0.00022473,2]
[381737434,1756325463086,-500.0,0.00022473,2]
[381737436,1756325463096,-500.0,0.00022473,2]
[381737438,1756325463106,-150.0,0.00022473,2]
[381737440,1756325463116,-500.0,0.00022473,2]
[381737442,1756325463126,-505.97401283,0.00022473,2]
[381737444,1756325463135,-500.0,0.00022473,2]
[381737446,1756325463146,-258.92923988,0.00022473,2]
[381737448,1756325463155,-500.60121131,0.00022473,2]
[381737450,1756325463164,-500.0,0.00022473,2]
[381737452,1756325463174,-500.0,0.00022473,2]
[381737454,1756325463183,-500.0,0.00022473,2]
[381737456,1756325463193,-500.0,0.00022473,2]
[381737458,1756325463203,-500.0,0.00022473,2]
[381737460,1756325463212,-153.37699255,0.00022473,2]
[381737462,1756325463221,-500.0,0.00022473,2]
[381737464,1756325463231,-529.88765004,0.00022473,2]
[381737466,1756325463241,-197.38868026,0.00022473,2]
[381737468,1756325463250,-500.0,0.00022473,2]
[381737470,1756325463259,-500.0,0.00022473,2]
[381737472,1756325463268,-500.0,0.00022473,2]
[381737474,1756325463278,-500.0,0.00022473,2]
[381737476,1756325463288,-500.0,0.00022473,2]
[381737478,1756325463297,-500.0,0.00022473,2]
[381737480,1756325463307,-500.0,0.00022473,2]
[381737481,1756325463317,-575.67741229,0.00022473,2]
[381737484,1756325463327,-500.0,0.00022473,2]
[381737486,1756325463337,-500.0,0.00022473,2]
[381737488,1756325463346,-500.0,0.00022473,2]
[381737489,1756325463357,-249.65952325,0.00022473,2]
[381737491,1756325463367,-500.0,0.00022473,2]
[381737493,1756325463377,-500.0,0.00022473,2]
[381737496,1756325463387,-393.6560695,0.00022473,2]
[381737498,1756325463397,-500.0,0.00022473,2]
[381737500,1756325463406,-500.0,0.00022473,2]
[381737501,1756325463415,-500.0,0.00022473,2]
[381737503,1756325463424,-500.0,0.00022473,2]
[381737505,1756325463434,-500.0,0.00022473,2]
[381737507,1756325463443,-500.0,0.00022473,2]
[381737509,1756325463452,-500.0,0.00022473,2]
[381737511,1756325463462,-500.0,0.00022473,2]
[381737513,1756325463471,-500.0,0.00022473,2]
[381737515,1756325463480,-500.0,0.00022473,2]
[381737517,1756325463490,-503.56407155,0.00022473,2]
[381737519,1756325463499,-638.0,0.00022501,2]
[381737521,1756325463508,-2157.0,0.00022501,2]
[381737523,1756325463518,-151680.0,0.0002254,2]
[381737525,1756325463527,-168.0,0.00022586,2]
[381737527,1756325463537,-28585.98015835,0.000226,2]
[381737528,1756325463551,-362.33234397,0.00022603,2]
[381737529,1756325463560,-168.0,0.00022639,2]
[381737530,1756325463571,-155.56118263,0.00022648,3]
[381737531,1756325463580,-310.02441966,0.00022663,8]
[381737532,1756325463590,-168.0,0.0002267,2]
[381737533,1756325463602,-500.0,0.00022677,8]
[381737534,1756325463612,-150.344,0.00022692,2]
[381737535,1756325463622,-150.637,0.00022692,2]
[381737536,1756325463631,-195.869,0.00022692,2]
[381737537,1756325463640,-220.532,0.00022692,2]
[381737538,1756325463650,-974.0,0.00022692,2]
[381737539,1756325463660,-3000.0,0.000227,2]
[381737540,1756325463669,-1200.0,0.00022708,2]
[381737541,1756325463679,-3000.0,0.0002271,2]
[381737542,1756325463688,-3000.0,0.0002272,2]
[381737543,1756325463697,-151.0,0.00022726,2]
[381737544,1756325463707,-151.0,0.00022726,2]
[381737545,1756325463717,-151.0,0.00022726,2]
[381737546,1756325463726,-151.0,0.00022726,2]
[381737548,1756325463736,-153.28071032,0.00022726,2]
[381737549,1756325463746,-199.81864004,0.00022726,2]
[381737550,1756325463756,-151.0,0.00022726,2]
[381737552,1756325463766,-611.85450736,0.00022726,2]
[381737554,1756325463776,-827.0,0.00022726,2]
[381737556,1756325463785,-161.33279216,0.00022726,2]
[381737558,1756325463795,-3000.0,0.0002273,2]
[381737560,1756325463805,-480.0,0.00022739,2]
[381737562,1756325463816,-480.0,0.00022739,2]
[381737564,1756325463825,-480.0,0.00022739,2]
[381737566,1756325463835,-480.0,0.00022739,2]
[381737568,1756325463844,-480.0,0.00022739,2]
[381737570,1756325463854,-480.0,0.00022739,2]
[381737572,1756325463864,-480.0,0.00022739,2]
[381737574,1756325463874,-480.0,0.00022739,2]
[381737576,1756325463884,-480.0,0.00022739,2]
[381737578,1756325463893,-480.0,0.00022739,2]
[381737580,1756325463903,-480.0,0.00022739,2]
[381737582,1756325463912,-480.0,0.00022739,2]
[381737584,1756325463922,-480.0,0.00022739,2]
[381737586,1756325463932,-515.83,0.00022739,2]
[381737588,1756325463941,-480.0,0.00022739,2]
[381737590,1756325463951,-480.0,0.00022739,2]
[381737592,1756325463960,-836.9,0.00022739,2]
[381737594,1756325463970,-480.0,0.00022739,2]
[381737596,1756325463979,-480.0,0.00022739,2]
[381737598,1756325463989,-480.0,0.00022739,2]
[381737600,1756325463998,-480.0,0.00022739,2]
[381737602,1756325464009,-602.66,0.00022739,2]
[381737604,1756325464019,-480.0,0.00022739,2]
[381737606,1756325464028,-648.37,0.00022739,2]
[381737608,1756325464038,-480.0,0.00022739,2]
[381737610,1756325464047,-480.0,0.00022739,2]
[381737612,1756325464057,-480.0,0.00022739,2]
[381737614,1756325464067,-480.0,0.00022739,2]
[381737616,1756325464076,-786.63,0.00022739,2]
[381737618,1756325464086,-480.0,0.00022739,2]
[381737620,1756325464096,-480.0,0.00022739,2]
[381737622,1756325464105,-480.0,0.00022739,2]
[381737624,1756325464115,-480.0,0.00022739,2]
[381737626,1756325464125,-248.01080789,0.00022739,2]
[381737628,1756325464135,-470.18249791,0.00022739,2]
[381737630,1756325464144,-480.0,0.00022739,2]
[381737632,1756325464154,-480.0,0.00022739,2]
[381737634,1756325464163,-480.0,0.00022739,2]
[381737636,1756325464173,-480.0,0.00022739,2]
[381737638,1756325464182,-480.0,0.00022739,2]
[381737640,1756325464192,-480.0,0.00022739,2]
[381737642,1756325464202,-480.0,0.00022739,2]
[381737644,1756325464211,-480.0,0.00022739,2]
[381737646,1756325464221,-480.0,0.00022739,2]
[381737648,1756325464231,-480.0,0.00022739,2]
[381737650,1756325464241,-480.0,0.00022739,2]
[381737652,1756325464251,-480.0,0.00022739,2]
[381737654,1756325464261,-480.0,0.00022739,2]
[381737656,1756325464270,-480.0,0.00022739,2]
[381737658,1756325464281,-480.0,0.00022739,2]
[381737660,1756325464290,-480.0,0.00022739,2]
[381737662,1756325464300,-907.68,0.00022739,2]
[381737664,1756325464310,-480.0,0.00022739,2]
[381737666,1756325464320,-480.0,0.00022739,2]
[381737668,1756325464329,-1317.58,0.00022739,2]
[381737670,1756325464339,-480.0,0.00022739,2]
[381737672,1756325464349,-480.0,0.00022739,2]
[381737674,1756325464359,-480.0,0.00022739,2]
[381737676,1756325464368,-480.0,0.00022739,2]
[381737678,1756325464378,-480.0,0.00022739,2]
[381737680,1756325464387,-480.0,0.00022739,2]
[381737682,1756325464397,-480.0,0.00022739,2]
[381737684,1756325464408,-480.0,0.00022739,2]
[381737686,1756325464418,-480.0,0.00022739,2]
[381737688,1756325464427,-480.0,0.00022739,2]
[381737690,1756325464437,-918.4,0.00022739,2]
[381737692,1756325464447,-480.0,0.00022739,2]
[381737695,1756325464457,-480.0,0.00022739,2]
[381737697,1756325464468,-480.0,0.00022739,2]
[381737699,1756325464478,-521.2929728,0.00022739,2]
[381737701,1756325464489,-712.27,0.00022739,2]
[381737703,1756325464500,-480.0,0.00022739,2]
[381737705,1756325464510,-480.0,0.00022739,2]
[381737707,1756325464520,-480.0,0.00022739,2]
[381737709,1756325464530,-480.0,0.00022739,2]
[381737711,1756325464542,-480.0,0.00022739,2]
[381737713,1756325464552,-480.0,0.00022739,2]
[381737715,1756325464561,-480.0,0.00022739,2]
[381737717,1756325464573,-480.0,0.00022739,2]
[381737719,1756325464584,-480.0,0.00022739,2]
[381737721,1756325464594,-480.0,0.00022739,2]
[381737723,1756325464604,-480.0,0.00022739,2]
[381737725,1756325464613,-1205.42,0.00022739,2]
[381737727,1756325464623,-480.0,0.00022739,2]
[381737729,1756325464632,-480.0,0.00022739,2]
[381737731,1756325464642,-480.0,0.00022739,2]
[381737733,1756325464651,-480.0,0.00022739,2]
[381737735,1756325464661,-480.0,0.00022739,2]
[381737737,1756325464671,-505.04,0.00022739,2]
[381737739,1756325464680,-480.0,0.00022739,2]
[381737741,1756325464690,-480.0,0.00022739,2]
[381737743,1756325464702,-480.0,0.00022739,2]